bitfinex/quotes_SOLUSD_20220306
["timestamp","ask_amount","ask_price","bid_price","bid_amount"]
[1646592789105,1.285,86.626,86.521,5.775]
[1646592789305,0.60891876,86.623,86.521,5.775]
[1646592789504,183.08,86.624,86.521,5.775]
[1646592789505,0.60891876,86.621,86.521,5.775]
[1646592789709,1.289,86.62,86.522,46.62799271]
[1646592789907,0.60891876,86.619,86.523,5.775]
[1646592790108,183.08,86.609,86.523,5.775]
[1646592790310,1.90191876,86.608,86.523,5.775]
[1646592790510,1.90191876,86.608,86.522,46.62799271]
[1646592790911,1.90191876,86.608,86.523,5.776]
[1646592791109,114.3,86.599,86.53,17.3411]
[1646592791310,1.295,86.598,86.53,17.3411]
[1646592791512,0.60891876,86.597,86.53,17.3411]
[1646592791711,0.60891876,86.595,86.53,17.3411]
[1646592791913,1.299,86.594,86.53,17.3411]
[1646592792313,1.301,86.598,86.531,5.776]
[1646592793117,17.3408,86.59,86.531,5.776]
[1646592793713,1.301,86.598,86.54,17.3395]
[1646592793912,1.303,86.607,86.541,58.94492935]
[1646592794512,1.303,86.607,86.541,64.71992935]
[1646592794917,70.083,86.607,86.541,64.71992935]
[1646592795113,68.78,86.599,86.541,64.71992935]
[1646592795314,1.305,86.598,86.541,58.94492935]
[1646592795521,1.305,86.598,86.53,17.3408]
[1646592795714,114.3,86.588,86.521,5.775]
[1646592795914,114.3,86.588,86.49,13.78]
[1646592796114,0.42527359,86.587,86.49,13.78]
[1646592796517,114.3,86.588,86.502,68.08180576]
[1646592796717,68.78,86.589,86.52,17.3423]
[1646592796921,1.309,86.607,86.521,63.17799402]
[1646592798120,17.3382,86.6,86.54,17.3379]
[1646592798319,17.3382,86.6,86.541,56.23969542]
[1646592798518,114.3,86.599,86.541,56.23969542]
[1646592799018,114.3,86.599,86.54,17.3379]
[1646592799425,17.3401,86.59,86.54,17.3379]
[1646592799620,183.08,86.589,86.501,22.8009]
[1646592799821,209.22997474,86.589,86.501,22.8009]
[1646592800022,224.21507638,86.589,86.502,54.2148291]
[1646592800220,183.08,86.587,86.503,5.777]
[1646592800422,17.67079503,86.589,86.503,5.777]
[1646592800423,25.82,86.586,86.503,5.777]
[1646592800626,25.82,86.586,86.51,17.3452]
[1646592800833,24.581,86.586,86.511,5.777]
[1646592801230,24.581,86.586,86.504,5.777]
[1646592801630,183.08,86.579,86.515,62.12167597]
[1646592801940,1.124,86.578,86.491,5.777]
[1646592802134,114.3,86.577,86.481,5.777]
[1646592802334,1.194,86.576,86.482,24.864]
[1646592802537,114.3,86.573,86.483,5.777]
[1646592802736,183.08,86.559,86.49,17.3493]
[1646592802937,1.334,86.558,86.485,5.777]
[1646592803135,183.08,86.557,86.466,5.777]
[1646592803435,192.12,86.557,86.466,5.777]
[1646592803637,192.12,86.557,86.433,23.43411353]
[1646592803638,183.08,86.539,86.45,17.3567]
[1646592803837,183.08,86.539,86.451,5.78]
[1646592804035,183.08,86.537,86.452,53.42813819]
[1646592804436,183.08,86.535,86.452,53.42813819]
[1646592805238,198.02497498,86.535,86.452,53.42813819]
[1646592805852,221.48925633,86.535,86.452,53.42813819]
[1646592806252,68.78,86.519,86.452,53.42813819]
[1646592806451,1.286,86.518,86.452,53.42813819]
[1646592806652,1.238,86.519,86.452,53.42813819]
[1646592806853,1.19,86.533,86.452,53.42813819]
[1646592807056,1.19,86.533,86.453,143.51411353]
[1646592807253,23.46428135,86.566,86.46,17.3544]
[1646592807453,144.98721147,86.565,86.461,5.779]
[1646592807656,68.78,86.556,86.455,5.779]
[1646592807953,114.3,86.535,86.455,5.779]
[1646592808154,1.141,86.534,86.455,5.779]
[1646592808552,183.08,86.529,86.46,17.3547]
[1646592808753,1.237,86.528,86.461,5.78]
[1646592810158,17.3544,86.52,86.461,5.78]
[1646592810454,1.333,86.519,86.461,5.78]
[1646592811855,1.333,86.519,86.47,17.3526]
[1646592812057,1.333,86.519,86.471,47.29980695]
[1646592812961,1.333,86.519,86.472,24.7987]
[1646592813157,1.333,86.519,86.473,114.3]
[1646592813456,1.333,86.519,86.48,17.351]
[1646592813856,1.333,86.519,86.48,31.131]
[1646592814060,0.0001,86.519,86.481,115.632]
[1646592814256,0.0001,86.519,86.483,114.3]
[1646592814457,0.0001,86.519,86.484,1.332]
[1646592814857,0.0001,86.519,86.49,17.3409]
[1646592815058,114.3,86.579,86.491,1.332]
[1646592815256,114.3,86.579,86.492,58.31155768]
[1646592815459,114.3,86.577,86.493,24.7987]
[1646592815657,68.78,86.57,86.493,24.7987]
[1646592815857,183.08,86.569,86.493,24.7987]
[1646592816058,206.54428135,86.569,86.494,1.332]
[1646592816259,5.09249507,86.568,86.465,25.6224]
[1646592816456,183.08,86.567,86.465,25.6224]
[1646592816659,206.54428135,86.567,86.465,25.6224]
[1646592816858,183.08,86.565,86.465,25.6224]
[1646592817058,183.08,86.559,86.465,25.6224]
[1646592817261,183.08,86.559,86.466,64.61211437]
[1646592817459,183.08,86.559,86.467,1.332]
[1646592817659,183.08,86.557,86.467,1.332]
[1646592818260,183.08,86.549,86.48,17.3508]
[1646592818460,114.3,86.547,86.481,1.332]
[1646592818862,114.3,86.547,86.48,17.3508]
[1646592819260,114.3,86.539,86.48,17.3508]
[1646592819861,22.8858,86.548,86.48,17.3508]
[1646592820062,22.8858,86.548,86.481,24.203]
[1646592820266,22.8858,86.548,86.5,17.3456]
[1646592820464,22.8858,86.548,86.481,24.203]
[1646592820863,114.3,86.547,86.481,24.203]
[1646592821064,68.78,86.546,86.481,24.203]
[1646592821266,183.08,86.539,86.467,1.332]
[1646592821465,183.08,86.539,86.475,55.88836853]
[1646592821665,17.3517,86.53,86.48,17.3508]
[1646592824270,22.8368,86.538,86.48,17.3508]
[1646592824468,22.8368,86.538,86.48,24.0708]
[1646592825872,24.5738,86.558,86.48,24.0708]
[1646592826073,24.9953,86.557,86.48,24.0708]
[1646592827574,48.89291469,86.557,86.48,24.0708]
[1646592827772,48.89291469,86.557,86.48,17.3508]
[1646592828273,17.3471,86.55,86.48,17.3508]
[1646592829574,17.3471,86.55,86.481,5.779]
[1646592829774,17.3471,86.55,86.49,17.3478]
[1646592829974,17.3471,86.55,86.491,52.61405604]
[1646592830775,24.9953,86.557,86.5,17.3464]
[1646592831178,3.09645965,86.575,86.5,17.3464]
[1646592831375,23.89761469,86.583,86.493,24.3981]
[1646592831376,6.32114917,86.578,86.501,5.777]
[1646592831575,6.32114917,86.578,86.496,5.777]
[1646592831775,9.41760882,86.582,86.52,17.341]
[1646592831975,6.32114917,86.582,86.521,63.90855623]
[1646592832178,3.09645965,86.581,86.521,63.90855623]
[1646592832374,3.09645965,86.58,86.521,63.90855623]
[1646592832574,6.32114917,86.581,86.521,63.90855623]
[1646592832975,114.3,86.58,86.521,63.90855623]
[1646592833176,114.3,86.578,86.52,17.341]
[1646592833578,17.3432,86.57,86.52,17.341]
[1646592834275,17.3432,86.57,86.521,49.88083585]
[1646592834877,17.3432,86.57,86.52,17.341]
[1646592835276,114.3,86.569,86.501,5.776]
[1646592835475,17.3465,86.56,86.496,5.777]
[1646592835877,17.3465,86.56,86.497,48.87362882]
[1646592836076,114.3,86.559,86.498,5.777]
[1646592836279,114.3,86.559,86.5,17.3465]
[1646592837176,17.3472,86.55,86.5,17.3465]
[1646592838178,183.08,86.549,86.498,5.777]
[1646592838377,183.08,86.549,86.46,57.8324]
[1646592838378,183.08,86.539,86.46,57.8324]
[1646592838578,68.78,86.539,86.461,47.1861]
[1646592838781,68.28,86.539,86.461,47.1861]
[1646592839179,68.28,86.539,86.462,62.7485747]
[1646592839378,114.3,86.538,86.462,62.7485747]
[1646592839778,17.3521,86.54,86.462,62.7485747]
[1646592839979,17.3521,86.54,86.48,17.3515]
[1646592840179,183.08,86.539,86.48,17.3515]
[1646592840382,114.3,86.529,86.48,17.3515]
[1646592841883,17.3522,86.53,86.48,17.3515]
[1646592842288,22.5276,86.548,86.48,17.3515]
[1646592843088,22.5276,86.548,86.481,24.1893]
[1646592843288,22.5276,86.548,86.5,17.346]
[1646592843491,22.5276,86.548,86.501,51.32191962]
[1646592846092,17.3451,86.56,86.501,51.32191962]
[1646592846291,23.547,86.563,86.51,17.3441]
[1646592846693,23.89761469,86.58,86.51,17.3441]
[1646592847315,41.23821469,86.58,86.51,17.3441]
[1646592850614,17.3406,86.58,86.51,17.3441]
[1646592851014,23.547,86.588,86.51,17.3441]
[1646592851414,23.89761469,86.587,86.51,17.3441]
[1646592852214,17.3407,86.58,86.51,17.3441]
[1646592852714,48.14981554,86.587,86.51,17.3441]
[1646592853614,114.3,86.585,86.51,17.3441]
[1646592853817,68.78,86.582,86.502,23.8939]
[1646592854027,183.08,86.569,86.502,23.8939]
[1646592854220,114.3,86.563,86.502,23.8939]
[1646592854422,114.3,86.549,86.502,23.8939]
[1646592854823,183.08,86.559,86.502,23.8939]
[1646592855224,114.3,86.559,86.502,23.8939]
[1646592855625,76.16967519,86.568,86.502,23.8939]
[1646592855626,114.3,86.567,86.502,23.8939]
[1646592855924,114.3,86.565,86.502,23.8939]
[1646592856124,17.3472,86.55,86.502,23.8939]
[1646592856524,48.82101469,86.568,86.502,23.8939]
[1646592856823,6.32235955,86.567,86.502,23.8939]
[1646592857523,17.3447,86.56,86.502,23.8939]
[1646592859129,48.82101469,86.568,86.502,23.8939]
[1646592859330,3.09645965,86.572,86.502,23.8939]
[1646592859530,3.09645965,86.578,86.502,23.8939]
[1646592859734,3.09645965,86.581,86.502,23.8939]
[1646592860031,3.09645965,86.585,86.502,23.8939]
[1646592860230,3.09645965,86.589,86.502,23.8939]
[1646592860631,17.3416,86.58,86.51,17.3445]
[1646592861933,23.89761469,86.578,86.51,17.3445]
[1646592862134,17.3425,86.57,86.51,17.3445]
[1646592862336,114.3,86.569,86.51,17.3445]
[1646592862736,231.22981554,86.569,86.502,23.8939]
[1646592863135,114.3,86.559,86.502,23.8939]
[1646592864235,17.3473,86.55,86.502,23.8939]
[1646592866441,17.3473,86.55,86.5,17.3463]
[1646592866638,114.3,86.539,86.49,17.3483]
[1646592866839,23.3928,86.548,86.49,17.3483]
[1646592867039,23.3928,86.548,86.488,0.77096592]
[1646592867543,23.3928,86.548,86.488,65.52591084]
[1646592867739,23.3928,86.548,86.49,17.3475]
[1646592868345,23.3928,86.548,86.489,23.2979]
[1646592869148,23.3928,86.548,86.5,17.3467]
[1646592872350,23.3928,86.548,86.49,17.3483]
[1646592872750,23.3928,86.548,86.489,23.2979]
[1646592874170,23.3928,86.548,86.5,17.3467]
[1646592877474,23.89761469,86.569,86.5,131.6467]
[1646592877675,22.6125,86.57,86.501,22.6456]
[1646592877978,22.7025,86.582,86.521,60.8382964]
[1646592878775,22.7025,86.582,86.52,17.3423]
[1646592879376,68.78,86.565,86.48,13.78]
[1646592879575,68.78,86.565,86.442,22.5728]
[1646592879576,114.3,86.558,86.492,22.6456]
[1646592879775,114.3,86.556,86.492,22.6456]
[1646592880475,68.78,86.549,86.45,37.9269]
[1646592880679,114.3,86.548,86.45,37.9269]
[1646592880882,114.3,86.539,86.45,37.9269]
[1646592881078,114.3,86.539,86.48,17.3503]
[1646592881581,17.3502,86.54,86.48,17.3503]
[1646592881779,17.3502,86.54,86.471,24.3869]
[1646592882781,17.3502,86.54,86.49,17.3494]
[1646592883384,1.54065756,86.531,86.471,24.3869]
[1646592883584,1.54065756,86.532,86.471,24.3869]
[1646592883783,1.54065756,86.53,86.471,24.3869]
[1646592883985,1.54065756,86.53,86.5,17.3475]
[1646592884292,1.54065756,86.529,86.471,24.3869]
[1646592884984,1.54065756,86.529,86.48,17.3506]
[1646592885486,1.54065756,86.521,86.48,17.3506]
[1646592885888,1.54065756,86.522,86.48,17.3506]
[1646592886386,1.54065756,86.522,86.49,17.3493]
[1646592886590,1.54065756,86.525,86.49,17.3493]
[1646592886785,1.54065756,86.527,86.49,17.3493]
[1646592888087,1.54065756,86.526,86.481,23.0245]
[1646592888286,1.54065756,86.525,86.481,23.0245]
[1646592888890,1.54065756,86.526,86.481,23.0245]
[1646592889087,1.54065756,86.526,86.48,17.3512]
[1646592889286,1.54065756,86.523,86.47,17.3531]
[1646592889690,1.54065756,86.522,86.461,24.4435]
[1646592889887,115.84065756,86.522,86.461,24.4435]
[1646592890087,17.3576,86.5,86.461,24.4435]
[1646592891588,1.54065756,86.509,86.461,24.4435]
[1646592891789,1.54065756,86.509,86.469,55.21737108]
[1646592892388,1.54065756,86.51,86.469,55.21737108]
[1646592892589,1.54065756,86.513,86.49,17.3495]
[1646592892788,22.5695,86.519,86.49,17.3495]
[1646592892989,1.54065756,86.523,86.469,55.21737108]
[1646592893289,1.54065756,86.522,86.469,55.21737108]
[1646592893691,1.54065756,86.527,86.469,55.21737108]
[1646592893888,1.54065756,86.528,86.49,17.3496]
[1646592894090,1.54065756,86.531,86.49,17.3496]
[1646592894489,1.54065756,86.532,86.49,17.3496]
[1646592894688,1.54065756,86.534,86.49,17.3496]
[1646592895696,1.54065756,86.535,86.49,17.3496]
[1646592896696,1.54065756,86.534,86.49,17.3496]
[1646592896898,1.54065756,86.537,86.49,17.3496]
[1646592897097,1.54065756,86.546,86.49,17.3496]
[1646592897297,1.54065756,86.549,86.5,17.3421]
[1646592897497,1.54065756,86.549,86.502,48.83491166]
[1646592897797,1.54065756,86.551,86.502,48.83491166]
[1646592897996,1.54065756,86.553,86.503,114.3]
[1646592898198,1.54065756,86.562,86.503,114.3]
[1646592898400,1.54065756,86.563,86.51,17.3425]
[1646592898599,1.54065756,86.564,86.511,24.2664]
[1646592899400,1.54065756,86.566,86.511,24.2664]
[1646592899601,1.54065756,86.566,86.52,17.338]
[1646592901411,1.54065756,86.567,86.52,17.338]
[1646592902704,1.54065756,86.569,86.52,17.338]
[1646592902904,22.8437,86.579,86.52,17.338]
[1646592902905,1.54065756,86.568,86.52,17.338]
[1646592903909,1.54065756,86.569,86.52,17.338]
[1646592904310,1.54065756,86.57,86.52,17.338]
[1646592905207,1.54065756,86.571,86.52,17.338]
[1646592905409,1.54065756,86.572,86.52,17.338]
[1646592905610,1.54065756,86.575,86.52,17.338]
[1646592905910,1.54065756,86.578,86.52,17.338]
[1646592906209,24.38435756,86.579,86.52,17.338]
[1646592906412,22.8437,86.579,86.52,17.338]
[1646592907632,22.8437,86.579,86.557,0.77096592]
[1646592907833,1.54065756,86.581,86.557,0.77096592]
[1646592908632,1.54065756,86.582,86.557,0.77096592]
[1646592909234,1.54065756,86.583,86.557,0.77096592]
[1646592909835,1.54065756,86.584,86.557,0.77096592]
[1646592910037,1.54065756,86.583,86.557,0.77096592]
[1646592910837,1.54065756,86.584,86.557,0.77096592]
[1646592911237,1.54065756,86.585,86.557,0.77096592]
[1646592911436,2.68665189,86.584,86.557,0.77096592]
[1646592911640,183.08,86.579,86.557,0.77096592]
[1646592911840,1.54065756,86.578,86.557,0.77096592]
[1646592912238,17.3429,86.57,86.557,0.77096592]
[1646592913539,1.54065756,86.577,86.557,0.77096592]
[1646592913944,1.54065756,86.578,86.557,0.77096592]
[1646592914948,1.54065756,86.58,86.557,0.77096592]
[1646592915446,1.54065756,86.585,86.557,0.77096592]
[1646592915646,1.54065756,86.586,86.557,0.77096592]
[1646592916045,1.54065756,86.585,86.557,0.77096592]
[1646592916446,1.54065756,86.586,86.557,0.77096592]
[1646592916648,1.54065756,86.595,86.557,0.77096592]
[1646592916850,1.54065756,86.595,86.558,54.10303731]
[1646592917048,1.54065756,86.598,86.558,54.10303731]
[1646592917249,1.54065756,86.599,86.56,17.3358]
[1646592918448,1.54065756,86.601,86.56,17.3358]
[1646592919651,1.54065756,86.607,86.56,17.3358]
[1646592920451,1.54065756,86.608,86.56,17.3358]
[1646592920757,1.54065756,86.605,86.56,17.3358]
[1646592920953,1.54065756,86.604,86.56,17.3358]
[1646592921155,1.54065756,86.605,86.56,17.3358]
[1646592921953,1.54065756,86.606,86.56,131.6358]
[1646592922156,1.54065756,86.616,86.56,131.6358]
[1646592922355,1.54065756,86.618,86.56,131.6358]
[1646592922754,1.54065756,86.61,86.56,17.3358]
[1646592922955,1.54065756,86.611,86.56,17.3358]
[1646592923156,1.54065756,86.612,86.56,17.3358]
[1646592923356,1.54065756,86.611,86.56,17.3358]
[1646592923754,6.3183611,86.633,86.56,17.3358]
[1646592923755,1.54065756,86.612,86.56,17.3358]
[1646592924155,1.54065756,86.612,86.56,131.6358]
[1646592924557,1.54065756,86.614,86.56,131.6358]
[1646592924755,1.54065756,86.611,86.56,131.6358]
[1646592924956,1.54065756,86.619,86.56,131.6358]
[1646592925160,1.54065756,86.623,86.56,145.4158]
[1646592925360,1.54065756,86.623,86.56,153.0758]
[1646592925556,6.31688329,86.645,86.56,153.0758]
[1646592925557,1.54065756,86.656,86.56,153.0758]
[1646592925758,86.11230393,86.658,86.591,114.3]
[1646592925958,86.11230393,86.658,86.601,164.08641204]
[1646592926158,86.11230393,86.658,86.601,49.78641204]
[1646592926360,1.54065756,86.661,86.601,49.78641204]
[1646592926559,1.54065756,86.666,86.601,49.78641204]
[1646592926961,1.54065756,86.669,86.601,49.78641204]
[1646592927159,1.54065756,86.668,86.601,49.78641204]
[1646592927361,1.54065756,86.668,86.61,17.318]
[1646592927960,1.54065756,86.665,86.61,17.318]
[1646592928459,1.54065756,86.67,86.61,17.318]
[1646592928861,25.35767827,86.67,86.61,17.318]
[1646592929160,42.68077827,86.67,86.61,17.318]
[1646592929361,1.54065756,86.668,86.61,17.318]
[1646592929563,1.54065756,86.667,86.61,17.318]
[1646592929963,1.54065756,86.673,86.61,17.318]
[1646592930164,24.0257,86.677,86.61,17.318]
[1646592930566,24.0257,86.677,86.61,31.098]
[1646592931173,24.0257,86.677,86.601,49.78641204]
[1646592931174,23.81702071,86.676,86.601,49.78641204]
[1646592931368,1.54065756,86.673,86.601,49.78641204]
[1646592931567,1.54065756,86.67,86.601,49.78641204]
[1646592931971,23.81702071,86.669,86.601,49.78641204]
[1646592932175,25.35767827,86.669,86.61,17.3245]
[1646592932567,23.81702071,86.668,86.61,17.3245]
[1646592932766,1.54065756,86.673,86.61,17.3245]
[1646592933181,1.54065756,86.673,86.621,114.3]
[1646592933384,1.54065756,86.675,86.612,5.769]
[1646592933584,1.54065756,86.682,86.612,5.769]
[1646592933882,1.54065756,86.684,86.612,15.519]
[1646592934283,1.54065756,86.685,86.63,17.3138]
[1646592934483,1.54065756,86.685,86.631,60.42619087]
[1646592934786,1.54065756,86.682,86.631,60.42619087]
[1646592935084,1.54065756,86.681,86.631,60.42619087]
[1646592935283,23.81702071,86.682,86.659,0.77096592]
[1646592935684,0.59293876,86.655,86.64,17.3179]
[1646592936087,0.00293876,86.655,86.64,17.3179]
[1646592936284,1.54065756,86.69,86.64,17.3179]
[1646592936486,1.54065756,86.707,86.651,114.3]
[1646592936688,1.54065756,86.707,86.652,5.768]
[1646592936884,1.54065756,86.71,86.652,5.768]
[1646592937084,1.54065756,86.71,86.643,5.768]
[1646592937287,84.96181495,86.711,86.644,60.96517066]
[1646592937486,84.96181495,86.711,86.645,5.768]
[1646592937686,1.54065756,86.712,86.645,5.768]
[1646592937988,1.54065756,86.715,86.646,114.3]
[1646592938187,1.54065756,86.715,86.66,131.61]
[1646592938389,1.54065756,86.719,86.661,5.767]
[1646592938588,1.54065756,86.726,86.662,114.3]
[1646592938788,105.92823154,86.752,86.671,167.68472694]
[1646592938789,1.54065756,86.728,86.671,167.68472694]
[1646592938990,1.54065756,86.74,86.673,114.3]
[1646592939194,1.54065756,86.742,86.675,114.3]
[1646592939389,1.54065756,86.747,86.69,131.6017]
[1646592939589,1.54065756,86.748,86.69,131.6017]
[1646592939791,23.81702071,86.763,86.69,131.6017]
[1646592939792,1.54065756,86.747,86.69,131.6017]
[1646592940489,1.54065756,86.748,86.69,17.3017]
[1646592940688,1.54065756,86.747,86.7,17.3028]
[1646592941095,1.54065756,86.743,86.691,29.9803]
[1646592941291,1.54065756,86.743,86.691,24.2153]
[1646592941693,1.54065756,86.735,86.691,24.2153]
[1646592942292,32.80393855,86.758,86.691,24.2153]
[1646592942293,1.54065756,86.738,86.691,24.2153]
[1646592942493,1.54065756,86.74,86.691,29.9813]
[1646592942692,1.54065756,86.741,86.691,24.2153]
[1646592943096,1.54065756,86.741,86.7,17.3053]
[1646592943292,1.54065756,86.742,86.7,17.3053]
[1646592943494,1.54065756,86.739,86.7,17.3053]
[1646592943694,1.54065756,86.742,86.7,17.3053]
[1646592944293,1.54065756,86.742,86.699,5.765]
[1646592944294,1.54065756,86.742,86.701,5.765]
[1646592944493,1.54065756,86.734,86.691,24.2153]
[1646592944695,1.54065756,86.735,86.691,24.2153]
[1646592944998,1.54065756,86.734,86.691,24.2153]
[1646592945595,1.54065756,86.736,86.691,24.2153]
[1646592945995,1.54065756,86.735,86.691,24.2153]
[1646592946398,1.54065756,86.731,86.691,24.2153]
[1646592946599,1.54065756,86.731,86.681,5.766]
[1646592946798,1.54065756,86.721,86.668,5.766]
[1646592947103,1.54065756,86.715,86.641,52.7215]
[1646592947298,1.54065756,86.71,86.641,52.7215]
[1646592947501,1.54065756,86.708,86.641,52.7215]
[1646592947699,1.54065756,86.708,86.65,17.3153]
[1646592947900,1.54065756,86.716,86.651,5.768]
[1646592948101,1.54065756,86.721,86.643,5.768]
[1646592948301,1.54065756,86.715,86.643,5.768]
[1646592948601,1.54065756,86.715,86.644,26.73893774]
[1646592948799,1.54065756,86.723,86.66,17.3093]
[1646592948999,1.54065756,86.723,86.661,5.767]
[1646592949201,1.54065756,86.724,86.66,13.78]
[1646592949400,1.54065756,86.726,86.661,5.767]
[1646592949599,1.54065756,86.726,86.661,29.3789]
[1646592949799,1.54065756,86.727,86.67,17.3078]
[1646592950003,1.54065756,86.727,86.67,63.75186441]
[1646592950299,1.54065756,86.715,86.67,63.75186441]
[1646592950900,1.54065756,86.715,86.67,17.3078]
[1646592951401,1.54065756,86.714,86.67,17.3078]
[1646592951799,1.54065756,86.714,86.661,23.6119]
[1646592952002,1.54065756,86.707,86.661,29.3789]
[1646592952202,1.54065756,86.699,86.661,23.6119]
[1646592952504,1.54065756,86.698,86.661,23.6119]
[1646592952701,1.54065756,86.702,86.661,23.6119]
[1646592952902,1.54065756,86.701,86.661,23.6119]
[1646592953304,1.54065756,86.702,86.662,5.768]
[1646592953703,1.54065756,86.701,86.662,5.768]
[1646592954103,1.54065756,86.702,86.662,5.768]
[1646592954302,1.54065756,86.702,86.67,17.3113]
[1646592954503,1.54065756,86.693,86.67,17.3113]
[1646592954703,1.54065756,86.695,86.67,17.3113]
[1646592955505,1.54065756,86.696,86.67,17.3113]
[1646592956209,1.54065756,86.695,86.662,5.768]
[1646592956406,3.09645965,86.719,86.662,5.768]
[1646592956407,1.54065756,86.689,86.662,5.768]
[1646592956606,1.54065756,86.686,86.661,23.6119]
[1646592956806,1.54065756,86.686,86.632,5.768]
[1646592957206,1.54065756,86.685,86.632,5.768]
[1646592957406,1.54065756,86.684,86.632,5.768]
[1646592957608,3.09645965,86.708,86.632,5.768]
[1646592957609,1.54065756,86.683,86.632,5.768]
[1646592957807,1.54065756,86.676,86.632,5.768]
[1646592958007,1.54065756,86.66,86.632,5.768]
[1646592958207,1.54065756,86.658,86.583,24.8961]
[1646592958407,1.54065756,86.648,86.584,55.56299842]
[1646592958607,1.54065756,86.645,86.59,17.3276]
[1646592958807,1.54065756,86.646,86.59,17.3276]
[1646592959008,1.54065756,86.645,86.59,17.3276]
[1646592959607,1.54065756,86.644,86.59,17.3276]
[1646592960408,1.54065756,86.647,86.59,17.3276]
[1646592960610,1.54065756,86.652,86.59,17.3276]
[1646592960810,1.54065756,86.652,86.59,131.6276]
[1646592961007,1.54065756,86.651,86.591,26.73893774]
[1646592961209,1.54065756,86.662,86.592,114.3]
[1646592961409,1.54065756,86.663,86.611,55.85473382]
[1646592962407,1.54065756,86.661,86.611,55.85473382]
[1646592962609,1.54065756,86.66,86.611,55.85473382]
[1646592962810,1.54065756,86.662,86.611,55.85473382]
[1646592963208,1.54065756,86.662,86.62,17.3206]
[1646592964410,1.54065756,86.663,86.62,17.3206]
[1646592965011,1.54065756,86.665,86.62,17.3206]
[1646592965210,1.54065756,86.669,86.62,17.3206]
[1646592965414,1.54065756,86.67,86.62,131.6206]
[1646592965610,1.54065756,86.67,86.62,145.4006]
[1646592965811,1.54065756,86.678,86.62,145.4006]
[1646592966010,81.73338585,86.724,86.62,145.4006]
[1646592966011,1.54065756,86.682,86.62,145.4006]
[1646592966214,1.54065756,86.684,86.62,145.4006]
[1646592966411,1.54065756,86.687,86.62,145.4006]
[1646592966813,1.54065756,86.686,86.62,145.4006]
[1646592967012,1.54065756,86.686,86.622,114.3]
[1646592967212,1.54065756,86.687,86.641,46.48831973]
[1646592967412,1.54065756,86.688,86.641,46.48831973]
[1646592967613,1.54065756,86.689,86.641,46.48831973]
[1646592967813,1.54065756,86.687,86.641,46.48831973]
[1646592968015,1.54065756,86.687,86.621,23.241]
[1646592968217,1.54065756,86.686,86.63,17.3195]
[1646592968415,1.54065756,86.684,86.63,17.3195]
[1646592968615,1.54065756,86.685,86.631,24.9931]
[1646592968816,1.54065756,86.681,86.631,24.9931]
[1646592969017,1.54065756,86.68,86.631,24.9931]
[1646592969215,1.54065756,86.678,86.631,24.9931]
[1646592969618,1.54065756,86.676,86.631,24.9931]
[1646592969817,1.54065756,86.676,86.64,17.3178]
[1646592970217,1.54065756,86.677,86.64,17.3178]
[1646592970416,1.54065756,86.681,86.64,131.6178]
[1646592970821,1.54065756,86.684,86.64,131.6178]
[1646592971023,1.54065756,86.685,86.64,131.6178]
[1646592971222,1.54065756,86.685,86.64,17.3178]
[1646592971622,1.54065756,86.686,86.64,17.3178]
[1646592971823,1.54065756,86.687,86.64,131.6178]
[1646592972023,1.54065756,86.69,86.64,131.6178]
[1646592972825,1.54065756,86.696,86.64,131.6178]
[1646592973231,1.54065756,86.696,86.64,152.2878]
[1646592973426,1.54065756,86.699,86.64,152.2878]
[1646592974644,1.54065756,86.701,86.64,152.2878]
[1646592974843,1.54065756,86.705,86.64,152.2878]
[1646592975346,82.80704493,86.708,86.64,152.2878]
[1646592975545,84.34770249,86.708,86.64,152.2878]
[1646592975748,1.54065756,86.707,86.64,152.2878]